[Event "Israel Open Championship 2023"]
[Site "Acre"]
[Date "2024.01.29"]
[Round "9.11"]
[White "Shohat, Yotam"]
[Black "Orian, Noga"]
[Result "1-0"]
[ECO "D02"]
[WhiteElo "2328"]
[BlackElo "2052"]
[Annotator "TA"]
[PlyCount "59"]
[EventDate "2024.01.18"]
[EventType "swiss"]
[EventCountry "ISR"]
[SourceTitle "playchess.com"]
[Source "ChessBase"]
[SourceQuality "1"]
[TimeControl "5400+30"]

{[%evp 9,59,22,57,34,30,21,33,17,41,32,100,117,132,98,102,106,97,105,96,97,100,89,109,98,100,102,116,106,115,128,126,95,95,83,171,164,144,165,275,290,526,522,662,673,979,977,1103,1093,1069,1055,29993,394]} 1. Nf3 {[%emt 0:00:04]} d5 {[%emt 0:00:20]} 2. g3 {[%emt 0:00:04]} Nd7 {[%emt 0:01:06]} 3. d4 {[%emt 0:01:24]} Nb6 {[%emt 0:00:17]} 4. Bg2 {[%emt 0:00:07]} Bf5 {[%emt 0:00:33]} 5. O-O {[%emt 0:00:21]} h6 {[%emt 0:00:22]} 6. a4 {[%emt 0:02:29]} a5 {[%emt 0:00:12]} 7. Ne5 {[%emt 0:00:40]} Nf6 {[%emt 0:01:16]} 8. c4 {[%emt 0:01:40] White is slightly better.} c6 {[%emt 0:02:52]} 9. cxd5 {[%emt 0:00:20]} Nbxd5 {[%emt 0:03:47]} ({Black should play} 9... cxd5 $14 10. Qb3 e6) 10. Qb3 $16 {[%emt 0:03:55]} Qc7 {[%emt 0:13:10]} 11. Nc3 {[%emt 0:24:46]} e6 {[%emt 0:01:41]} 12. Re1 {[%emt 0:04:04]} Nb4 {[%emt 0:04:58]} 13. e4 {[%emt 0:02:22][%cal Be2e4,Be4e5,Be5d6][%mdl 32]} Bh7 {[%emt 0:00:11]} 14. Bf4 {[%emt 0:00:08][%cal Oe5g6] Black must now prevent Ng6!} Bd6 {[%emt 0:07:47] [#]} 15. Nxf7 $1 {[%emt 0:13:40]} Kxf7 {[%emt 0:00:07]} 16. e5 {[%emt 0:00:06][%cal Ob3e6] Hoping for Qxe6+!} Qd7 {[%emt 0:02:23]} 17. exd6 {[%emt 0:05:25]} Bc2 {[%emt 0:00:15]} 18. Qc4 {[%emt 0:03:33] Strongly threatening Bh3.} Bd3 {[%emt 0:09:49]} 19. Qc5 {[%emt 0:02:51]} Bf5 {[%emt 0:00:34]} 20. Bf1 {[%emt 0:08:07] White has more active pieces.} Nc2 {[%emt 0:11:57] [#]} 21. Bc4 $1 $36 {[%emt 0:00:42][%mdl 2048] White is in control.} Kg6 {[%emt 0:00:31] [#]} (21... Bh3 $16) 22. f3 $1 $18 {[%emt 0:04:58][%cal Og3g4] And now g4! would win.} h5 {[%emt 0:05:33]} (22... b6 23. Qe5) 23. h3 {[%emt 0:05:20][%cal Og3g4,Bh2h3,Bh3g4][%mdl 32] g4! would now be deadly. Really sharp!} Nxe1 {[%emt 0:07:41]} (23... b6 $142 24. Qxb6 Nxe1 25. Rxe1 Bxh3 26. Bd3+ Kf7) 24. Rxe1 {[%emt 0:00:04] Threatens to win with g4.} Rhe8 $2 {[%emt 0:02:55]} (24... Nd5 {was worth a try.} 25. Nxd5 cxd5) 25. g4 {[%emt 0:00:36]} hxg4 {[%emt 0:00:10]} 26. hxg4 {[%emt 0:00:23]} Bc2 {[%emt 0:01:12]} 27. Re2 {[%emt 0:04:16]} Nd5 {[%emt 0:00:12]} 28. Nxd5 {[%emt 0:01:14]} exd5 {[%emt 0:00:17] Black is weak on the dark squares} 29. Rxc2 {[%emt 0:00:13]} dxc4 {[%emt 0:00:08]} 30. Qh5+ {[%emt 0:00:07] Weighted Error Value: White=0.06 (flawless) /Black=0.70.  Mistake:       	---       	Black=4      Inaccurate:     	---       	Black=1      OK:         	White=7     	Black=7      Best:        	White=4     	Black=1      Strong:       	White=2     	---        Brilliant:      	White=1     	---} 1-0

[Event "Israel Open Championship 2023"]
[Site "Acre"]
[Date "2024.01.29"]
[Round "9.12"]
[White "Kochavi, Ori"]
[Black "Steiner-Prozhanski, Giora"]
[Result "1/2-1/2"]
[ECO "B47"]
[WhiteElo "2428"]
[BlackElo "2229"]
[Annotator "TA"]
[PlyCount "82"]
[EventDate "2024.01.18"]
[EventType "swiss"]
[EventCountry "ISR"]
[SourceTitle "playchess.com"]
[Source "ChessBase"]
[SourceQuality "1"]
[TimeControl "5400+30"]

{[%evp 24,82,41,45,44,40,35,44,40,35,37,43,46,7,43,30,31,8,8,-37,-64,-78,-68,-326,-160,-165,0,0,0,0,0,-109,-106,-119,-64,-110,-109,-146,0,0,0,0,0,0,0,0,8,8,36,0,0,0,27,0,0,0,0,0,0,0,0]} 1. e4 {[%emt 0:01:46]} c5 {[%emt 0:00:05]} 2. Nf3 {[%emt 0:00:02]} e6 {[%emt 0:00:05]} 3. d4 {[%emt 0:00:01]} cxd4 {[%emt 0:00:06]} 4. Nxd4 {[%emt 0:00:01]} Nc6 {[%emt 0:00:05]} 5. Nc3 {[%emt 0:00:03]} Qc7 {[%emt 0:00:04]} 6. g3 {[%emt 0:01:37]} a6 {[%emt 0:00:52]} 7. Bg2 {[%emt 0:00:04]} Nf6 {[%emt 0:00:12]} 8. O-O {[%emt 0:00:09]} Nxd4 {[%emt 0:03:00]} 9. Qxd4 {[%emt 0:00:05]} Bc5 {[%emt 0:00:43]} 10. Bf4 {[%emt 0:00:11]} d6 {[%emt 0:01:10]} 11. Qd2 {[%emt 0:00:28]} h6 {[%emt 0:01:41]} 12. Rad1 {[%emt 0:00:05]} e5 {[%emt 0:04:16]} 13. Be3 {[%emt 0:00:07]} Bb4 {[%emt 0:06:33] [#]} 14. Nb5 $1 {[%emt 0:00:11]} axb5 {[%emt 0:00:10]} 15. Qxb4 {[%emt 0:00:04]} Rxa2 {[%emt 0:05:41] White is slightly better.} 16. Rxd6 {[%emt 0:00:20]} O-O {[%emt 0:05:00]} 17. Rd2 {[%emt 0:11:06]} Be6 {[%emt 0:17:57]} 18. Rfd1 {[%emt 0:15:40]} (18. Qxb5 Bc4 19. Qb4 Bxf1 20. Bxf1 Rfa8 $15) 18... Rfa8 {[%emt 0:10:23]} 19. Qxb5 {[%emt 0:11:50]} R8a5 {[%emt 0:04:15]} 20. Qb4 {[%emt 0:00:16]} (20. Bb6 {simplifies} Rxb5 21. Bxc7 Rbxb2 22. Rc1) 20... R5a4 {[%emt 0:02:12]} 21. Rd8+ {[%emt 0:04:30]} (21. Qb6 {simplifies} Qxb6 22. Bxb6 Nxe4 23. Rd8+) 21... Kh7 {[%emt 0:00:04]} 22. Qf8 {[%emt 0:00:05] And now Qh8+ would win.} Ra1 $1 {[%emt 0:10:20]} 23. Qh8+ {[%emt 0:13:21]} ({Better is} 23. Bf3 $1 $15) 23... Kg6 $17 {[%emt 0:00:03][%cal Oa4a8]} 24. Bf3 {[%emt 0:00:11] [#]} (24. c3 $2 Ra8 (24... Rxd1+ 25. Rxd1 Ra2 26. Bc1 $14) 25. f4 exf4 (25... Rxd8 $2 26. f5+ Bxf5 27. exf5+ Kxf5 28. Qxd8 $19) (25... Rxd1+ $2 26. Rxd1 Rxh8 27. fxe5 $19) 26. gxf4 Rxd1+ (26... Rxd8 $2 27. f5+ Bxf5 28. exf5+ Kxf5 29. Qxd8 $19) 27. Rxd1 Rxh8 $19) 24... Qxc2 $2 {[%emt 0:02:04]} ({Black should play} 24... Bh3 $1 $19 {...Qc6 would now be deadly.} 25. Bg5 Rxd1+ (25... Kxg5 26. Qxg7#) (25... hxg5 26. Qxh3 Qxd8 27. Kg2 $11) 26. Rxd1 Nxe4) 25. h4 $36 {[%emt 0:05:16][%cal Oe3h6][%mdl 2048] Strongly threatening Bxh6! Black is under pressure. Really sharp!} Rxd1+ $1 {[%emt 0:09:46]} 26. Rxd1 {[%emt 0:02:58]} h5 {[%emt 0:10:08][%cal Oa4a6]} (26... Nxe4 27. h5+ Kf6 28. Qd8+ Kf5 29. g4#) 27. Rc1 {[%emt 0:22:32]} (27. Bg5 $11 {keeps the balance.} Ng4 28. Bxg4 Bxg4 (28... hxg4 $2 29. Be7 $18) 29. Rd6+ Be6 30. Rxe6+ fxe6 31. Qe8+ Kh7 32. Qxh5+ Kg8 33. Qe8+ Kh7 34. Qh5+ Kg8 35. Qe8+ Kh7 36. Qh5+) 27... Qxb2 $17 {[%emt 0:00:27]} 28. Qd8 {[%emt 0:06:31]} Ra1 {[%emt 0:01:47]} (28... Nxe4 $2 {too greedy.} 29. Bxe4+ Rxe4 30. Qg5+ Kh7 31. Qxh5+ Kg8 32. Rd1 $18) (28... b5 $17 {[%cal Ob5b4] White must now prevent ...b4!} 29. Qd1 Ng4 (29... Nxe4 30. Rb1 $11)) 29. Rxa1 {[%emt 0:00:03]} (29. Qd1 $15 Ra2 30. Rb1) 29... Qxa1+ {[%emt 0:00:05]} 30. Kg2 {[%emt 0:00:03] [#]} Bg4 {[%emt 0:01:51]} (30... b5 $1 $17 {Threatens to win with ...b4.} 31. Qd6 Qc3) 31. Bxg4 $11 {[%emt 0:00:15]} hxg4 {[%emt 0:00:05][%mdl 4096] Endgame. KQB-KQN} 32. Qc8 {[%emt 0:00:07][%csl Ge4][%cal Rc8f5]} Kh7 {[%emt 0:02:03]} 33. Bg5 {[%emt 0:02:14]} Qa6 {[%emt 0:03:02]} 34. Qf5+ {[%emt 0:00:19]} Kh8 {[%emt 0:00:40]} 35. Qxe5 {[%emt 0:00:54]} Ng8 {[%emt 0:00:33]} 36. Be3 {[%emt 0:00:43]} Nf6 {[%emt 0:00:20] Prevents Qh5+.} 37. Bg5 {[%emt 0:01:08]} Ng8 {[%emt 0:01:12]} 38. Qf5 {[%emt 0:01:21]} Qe2 $1 {[%emt 0:00:00] The position is equal.} 39. Be3 {[%emt 0:01:12]} (39. Qxf7 Qxe4+ 40. Kg1 Qe1+ 41. Kg2 Qe4+ 42. Kg1 Kh7) 39... Nf6 {[%emt 0:00:00]} 40. Qc8+ {[%emt 0:00:21]} Kh7 {[%emt 0:00:04]} 41. Qf5+ {[%emt 0:00:02]} Kg8 {[%emt 0:00:42] Weighted Error Value: White=0.25 (precise) /Black=0.23 (precise) .  Missed win:     	---       	Black=2      Mistake:       	White=3     	Black=2      Inaccurate:     	White=5     	Black=2      OK:         	White=8     	Black=12     Best:        	White=2     	Black=4      Strong:       	---       	Black=3} 1/2-1/2

[Event "Israel Open Championship 2023"]
[Site "Acre"]
[Date "2024.01.29"]
[Round "9.13"]
[White "Gluhovsky, Mark"]
[Black "Yaniv, Yuval"]
[Result "1-0"]
[ECO "C02"]
[WhiteElo "2235"]
[BlackElo "2383"]
[Annotator "RC"]
[PlyCount "69"]
[EventDate "2024.01.18"]
[EventType "swiss"]
[EventCountry "ISR"]
[SourceTitle "playchess.com"]
[Source "ChessBase"]
[SourceQuality "1"]
[TimeControl "5400+30"]

1. e4 {[%emt 0:00:04]} e6 {[%emt 0:00:20]} 2. d4 {[%emt 0:00:18]} d5 {[%emt 0:00:29]} 3. e5 {[%emt 0:00:22]} c5 {[%emt 0:00:24]} 4. c3 {[%emt 0:00:10]} Nc6 {[%emt 0:00:38]} 5. Nf3 {[%emt 0:00:08]} Bd7 {[%emt 0:00:20]} 6. Be2 {[%emt 0:02:28]} Nge7 {[%emt 0:00:36]} 7. Na3 {[%emt 0:01:32]} cxd4 {[%emt 0:00:47]} 8. cxd4 {[%emt 0:00:11]} Nf5 {[%emt 0:00:11]} 9. O-O {[%emt 0:02:23]} f6 {[%emt 0:01:31]} 10. Bd3 {[%emt 0:07:30]} Be7 {[%emt 0:15:28]} 11. Bxf5 {[%emt 0:06:15]} exf5 {[%emt 0:00:09]} 12. exf6 {[%emt 0:01:18]} Bxf6 {[%emt 0:05:00]} 13. Bf4 {[%emt 0:09:21]} O-O {[%emt 0:00:31]} 14. Qb3 {[%emt 0:01:50]} Be8 {[%emt 0:12:07]} 15. Qxb7 {[%emt 0:06:33]} Rf7 {[%emt 0:01:23]} 16. Qb3 {[%emt 0:02:34]} g5 {[%emt 0:00:13]} 17. Be5 {[%emt 0:04:48]} g4 {[%emt 0:02:06]} 18. Bxf6 {[%emt 0:03:07]} Rxf6 {[%emt 0:03:06]} 19. Ne5 {[%emt 0:04:18]} Nxd4 {[%emt 0:00:59]} 20. Qd3 {[%emt 0:02:26]} Ne6 {[%emt 0:00:58]} 21. Rad1 {[%emt 0:00:59]} d4 {[%emt 0:04:12]} 22. Rfe1 {[%emt 0:00:52]} Rb8 {[%emt 0:07:25]} 23. Nac4 {[%emt 0:02:36]} Qd5 {[%emt 0:04:59]} 24. Qg3 {[%emt 0:02:50]} Rb7 {[%emt 0:10:01]} 25. Ne3 {[%emt 0:09:33]} Qd8 {[%emt 0:06:59]} 26. Nxf5 {[%emt 0:07:34]} Rxf5 {[%emt 0:03:45]} 27. Nxg4 {[%emt 0:00:29]} Ng7 {[%emt 0:06:45]} 28. Nh6+ {[%emt 0:02:17]} Kf8 {[%emt 0:00:09]} 29. Qa3+ {[%emt 0:03:06]} Re7 {[%emt 0:00:02]} 30. Rxd4 {[%emt 0:03:24]} Qc7 {[%emt 0:04:45]} 31. Rde4 {[%emt 0:04:54]} Rh5 {[%emt 0:01:52]} 32. Qxe7+ {[%emt 0:02:01]} Qxe7 {[%emt 0:00:06]} 33. Rxe7 {[%emt 0:00:03]} Rxh6 {[%emt 0:00:06]} 34. Rxg7 {[%emt 0:00:14]} Kxg7 {[%emt 0:01:48]} 35. Rxe8 {[%emt 0:00:15]} 1-0

[Event "Israel Open Championship 2023"]
[Site "Acre"]
[Date "2024.01.29"]
[Round "9.14"]
[White "Tifferet, Shakked"]
[Black "Uritsky, Yonathan"]
[Result "1/2-1/2"]
[ECO "E65"]
[WhiteElo "2334"]
[BlackElo "2097"]
[Annotator "RC"]
[PlyCount "184"]
[EventDate "2024.01.18"]
[EventType "swiss"]
[EventCountry "ISR"]
[SourceTitle "playchess.com"]
[Source "ChessBase"]
[SourceQuality "1"]
[TimeControl "5400+30"]

1. c4 {[%emt 0:00:26]} Nf6 {[%emt 0:00:10]} 2. g3 {[%emt 0:00:32]} c5 {[%emt 0:00:18]} 3. Bg2 {[%emt 0:00:05]} g6 {[%emt 0:00:11]} 4. Nc3 {[%emt 0:00:10]} Bg7 {[%emt 0:00:18]} 5. Nf3 {[%emt 0:00:06]} O-O {[%emt 0:00:10]} 6. O-O {[%emt 0:00:08]} Nc6 {[%emt 0:00:03]} 7. d4 {[%emt 0:00:04]} d6 {[%emt 0:00:05]} 8. dxc5 {[%emt 0:02:31]} dxc5 {[%emt 0:00:01]} 9. Bf4 {[%emt 0:00:07]} Be6 {[%emt 0:00:05]} 10. Ne5 {[%emt 0:09:11]} Nxe5 {[%emt 0:00:05]} 11. Bxe5 {[%emt 0:00:05]} Bxc4 {[%emt 0:08:28]} 12. Bxb7 {[%emt 0:11:28]} Qxd1 {[%emt 0:01:04]} 13. Rfxd1 {[%emt 0:00:20]} Rad8 {[%emt 0:00:11]} 14. b3 {[%emt 0:02:19]} Be6 {[%emt 0:02:15]} 15. Na4 {[%emt 0:02:15]} c4 {[%emt 0:04:22]} 16. Nc5 {[%emt 0:02:47]} Bd5 {[%emt 0:02:19]} 17. Bxd5 {[%emt 0:36:45]} Rxd5 {[%emt 0:01:10]} 18. Bxf6 {[%emt 0:00:20]} Rxd1+ {[%emt 0:00:11]} 19. Rxd1 {[%emt 0:00:01]} Bxf6 {[%emt 0:00:08]} 20. Nd7 {[%emt 0:00:14]} cxb3 {[%emt 0:01:06]} 21. axb3 {[%emt 0:01:36]} Rc8 {[%emt 0:00:16]} 22. Rd5 {[%emt 0:07:14]} Kg7 {[%emt 0:02:07]} 23. Rb5 {[%emt 0:04:43]} Bd4 {[%emt 0:01:34]} 24. Rb7 {[%emt 0:01:28]} Rc1+ {[%emt 0:00:28]} 25. Kg2 {[%emt 0:00:05]} Rb1 {[%emt 0:00:05]} 26. e3 {[%emt 0:01:16]} Bc3 {[%emt 0:01:05]} 27. Nc5 {[%emt 0:05:26]} Ba5 {[%emt 0:00:53]} 28. Rxe7 {[%emt 0:03:35]} Bb6 {[%emt 0:04:19]} 29. Ne4 {[%emt 0:02:03]} Rxb3 {[%emt 0:01:34]} 30. Nd6 {[%emt 0:02:51]} Kf6 {[%emt 0:01:15]} 31. Rb7 {[%emt 0:00:10]} Rb2 {[%emt 0:03:19]} 32. Kf3 {[%emt 0:01:03]} Rc2 {[%emt 0:01:20]} 33. h4 {[%emt 0:01:54]} h5 {[%emt 0:03:56]} 34. Ne4+ {[%emt 0:01:03]} Kg7 {[%emt 0:00:37]} 35. Nd6 {[%emt 0:00:01]} Kf6 {[%emt 0:00:55]} 36. Nxf7 {[%emt 0:00:28]} Rc7 {[%emt 0:00:46]} 37. Rxc7 {[%emt 0:00:07]} Bxc7 {[%emt 0:00:02]} 38. Ng5 {[%emt 0:00:06]} a5 {[%emt 0:02:41]} 39. Ne4+ {[%emt 0:00:20]} Kf5 {[%emt 0:00:02]} 40. Nc3 {[%emt 0:00:55]} Be5 {[%emt 0:01:03]} 41. Na4 {[%emt 0:02:31]} g5 {[%emt 0:04:41]} 42. hxg5 {[%emt 0:00:00]} Kxg5 {[%emt 0:00:00]} 43. Nc5 {[%emt 0:00:00]} Kf5 {[%emt 0:00:00]} 44. e4+ {[%emt 0:00:00]} Kg5 {[%emt 0:00:00]} 45. Kg2 {[%emt 0:00:00]} Kg6 {[%emt 0:00:00]} 46. f4 {[%emt 0:00:00]} Bd6 {[%emt 0:00:00]} 47. Na4 {[%emt 0:00:00]} h4 {[%emt 0:00:00]} 48. Kh3 {[%emt 0:00:00]} hxg3 {[%emt 0:00:00]} 49. Kxg3 {[%emt 0:00:00]} Kf6 {[%emt 0:00:00]} 50. Kg4 {[%emt 0:00:00]} Ke6 {[%emt 0:00:00]} 51. Kf3 {[%emt 0:00:00]} Kf6 {[%emt 0:00:00]} 52. Nb6 {[%emt 0:00:00]} Ke6 {[%emt 0:00:00]} 53. Na4 {[%emt 0:00:00]} Kf6 {[%emt 0:00:00]} 54. Ke3 {[%emt 0:00:00]} Ke6 {[%emt 0:00:00]} 55. Nb2 {[%emt 0:01:00]} Kf6 {[%emt 0:00:00]} 56. f5 {[%emt 0:02:02]} Bc7 {[%emt 0:00:00]} 57. Kd3 {[%emt 0:00:36]} Bd8 {[%emt 0:00:00]} 58. Kd4 {[%emt 0:00:21]} Bc7 {[%emt 0:00:00]} 59. Kd5 {[%emt 0:00:14]} Be5 {[%emt 0:00:00]} 60. Nc4 {[%emt 0:00:39]} Bc3 {[%emt 0:00:00]} 61. Nb6 {[%emt 0:00:19]} Bb2 {[%emt 0:00:00]} 62. Nd7+ {[%emt 0:02:08]} Ke7 {[%emt 0:00:00]} 63. Nc5 {[%emt 0:00:46]} Kf6 {[%emt 0:00:00]} 64. Nd3 {[%emt 0:00:57]} Bc3 {[%emt 0:00:00]} 65. Kc4 {[%emt 0:00:11]} Bd2 {[%emt 0:00:00]} 66. Kd4 {[%emt 0:02:09]} Bg5 {[%emt 0:00:00]} 67. Ne5 {[%emt 0:01:47]} Bd2 {[%emt 0:00:00]} 68. Nf3 {[%emt 0:00:09]} Bf4 {[%emt 0:00:00]} 69. Kc4 {[%emt 0:00:34]} Bc7 {[%emt 0:00:00]} 70. Kb5 {[%emt 0:00:42]} Bd8 {[%emt 0:00:00]} 71. Kc5 {[%emt 0:01:18]} Be7+ {[%emt 0:00:00]} 72. Kd5 {[%emt 0:00:20]} a4 {[%emt 0:00:00]} 73. Nd4 {[%emt 0:00:57]} a3 {[%emt 0:00:04]} 74. e5+ {[%emt 0:00:01]} Kf7 {[%emt 0:00:01]} 75. Nc2 {[%emt 0:00:45]} a2 {[%emt 0:00:11]} 76. Kc4 {[%emt 0:00:25]} Bf6 {[%emt 0:00:10]} 77. Kd4 {[%emt 0:00:32]} Bg7 {[%emt 0:00:21]} 78. Kd5 {[%emt 0:00:47]} Ke7 {[%emt 0:00:14]} 79. Ke4 {[%emt 0:00:29]} Kf7 {[%emt 0:00:17]} 80. Kf4 {[%emt 0:00:38]} Ke7 {[%emt 1:13:34]} 81. Na1 {[%emt 0:00:16]} Bh6+ {[%emt 0:00:00]} 82. Ke4 {[%emt 0:00:47]} Bc1 {[%emt 0:00:00]} 83. Kd5 {[%emt 0:00:42]} Bb2 {[%emt 0:00:00]} 84. f6+ {[%emt 0:00:13]} Kf7 {[%emt 0:00:00]} 85. Nb3 {[%emt 0:00:46]} a1=Q {[%emt 0:00:00]} 86. Nxa1 {[%emt 0:00:04]} Bxa1 {[%emt 0:00:00]} 87. Kd6 {[%emt 0:00:06]} Bb2 {[%emt 0:00:00]} 88. Kd5 {[%emt 0:00:17]} Bc3 {[%emt 0:00:00]} 89. Kd6 {[%emt 0:00:19]} Bb2 {[%emt 0:00:00]} 90. e6+ {[%emt 0:00:41]} Kxf6 {[%emt 0:00:00]} 91. e7 {[%emt 0:00:05]} Ba3+ {[%emt 0:00:00]} 92. Kd7 {[%emt 0:00:05]} Bxe7 {[%emt 0:06:00]} 1/2-1/2

[Event "Israel Open Championship 2023"]
[Site "Acre"]
[Date "2024.01.29"]
[Round "9.15"]
[White "Milikow, Yoav"]
[Black "Pelech, Roee"]
[Result "1-0"]
[ECO "B22"]
[WhiteElo "2376"]
[BlackElo "2178"]
[Annotator "TA"]
[PlyCount "65"]
[EventDate "2024.01.18"]
[EventType "swiss"]
[EventCountry "ISR"]
[SourceTitle "playchess.com"]
[Source "ChessBase"]
[SourceQuality "1"]
[TimeControl "5400+30"]

{[%evp 20,65,60,54,111,64,125,133,131,131,142,138,155,112,170,166,185,191,232,214,333,331,318,295,641,643,662,681,731,502,1151,1175,1168,1053,1308,1368,1363,1414,1392,894,1841,1042,1458,1435,1612,1340,2567,1940]} 1. e4 {[%emt 0:00:01]} c5 {[%emt 0:00:07]} 2. c3 {[%emt 0:00:04]} d5 {[%emt 0:00:44]} 3. exd5 {[%emt 0:00:08]} Qxd5 {[%emt 0:00:09]} 4. d4 {[%emt 0:00:33]} Nf6 {[%emt 0:00:05]} 5. Nf3 {[%emt 0:00:28]} e6 {[%emt 0:02:48]} 6. Be3 {[%emt 0:01:39]} cxd4 {[%emt 0:01:12]} 7. cxd4 {[%emt 0:02:53]} Bb4+ {[%emt 0:00:59]} 8. Nc3 {[%emt 0:00:41]} O-O {[%emt 0:00:30]} 9. Bd3 {[%emt 0:01:24]} Nc6 {[%emt 0:02:53]} 10. O-O {[%emt 0:00:26]} Bxc3 {[%emt 0:00:29]} 11. bxc3 {[%emt 0:00:02][%cal Bb2c3,Bc3c4][%mdl 32]} h6 {[%emt 0:03:24] Dodges Bg5} (11... b6 $14) 12. Rb1 {[%emt 0:03:38]} (12. Qd2 $16) 12... a6 {[%emt 0:06:45]} ({Better is} 12... b6 $14) 13. c4 $16 {[%emt 0:05:21]} Qd6 {[%emt 0:02:50][%cal Ob7b5] White is clearly better.} 14. Qd2 {[%emt 0:01:44][%cal Oe3h6] [#] Hoping for Bxh6!} Rd8 {[%emt 0:11:28]} 15. Rfd1 {[%emt 0:00:51][%cal Oe3h6]} Qe7 {[%emt 0:06:07]} 16. h3 {[%emt 0:05:38] White is more active.} Nd7 {[%emt 0:04:00]} (16... b5 $16 {was necessary.}) 17. Be4 {[%emt 0:06:37]} a5 {[%emt 0:03:39][%cal Ba6a5,Ba5a4][%mdl 32]} 18. Rb5 {[%emt 0:03:04]} (18. Bxh6 $6 gxh6 19. Qxh6 Qf6 $14) 18... a4 {[%emt 0:02:10]} 19. Re1 {[%emt 0:08:44][%cal Oe3h6]} Qf6 {[%emt 0:03:38]} (19... f6 {keeps fighting.} 20. d5 Nce5) 20. Rh5 $18 {[%emt 0:07:29]} Nf8 {[%emt 0:02:35]} 21. g4 {[%emt 0:04:04]} g5 $2 {[%emt 0:07:15] [#]} (21... Ra6 22. Rd1 Rd7) 22. h4 {[%emt 0:06:16][%cal Bh3h4,Bh4g5,Bg5h6][%mdl 32] White is clearly winning.} Qg7 {[%emt 0:01:03]} 23. hxg5 {[%emt 0:00:24]} e5 {[%emt 0:06:52]} 24. Bxc6 {[%emt 0:02:16]} (24. gxh6 $2 {too greedy.} Qxg4+ 25. Kh1 Qxh5+ $19) 24... Bxg4 {[%emt 0:04:04]} (24... bxc6 $142 25. Qc3 (25. Nxe5 Qxe5 26. dxe5 Rxd2 $18) (25. Rxh6 Bxg4 26. Nxe5 Qxe5 $18) 25... exd4 26. Bxd4 Rxd4 27. Qxd4 (27. Nxd4 Bxg4 28. gxh6 Qf6 $18) 27... Qxd4 28. Nxd4 Bxg4) 25. gxh6 {[%emt 0:00:28]} Qf6 {[%emt 0:01:30]} 26. Rg5+ {[%emt 0:00:36]} Ng6 {[%emt 0:00:32]} 27. Nxe5 {[%emt 0:00:33]} Bf5 {[%emt 0:05:54]} 28. Bd5 {[%emt 0:00:45]} Kh7 {[%emt 0:01:25]} 29. Nxg6 {[%emt 0:00:45]} fxg6 {[%emt 0:00:24]} 30. Bf4 {[%emt 0:00:51][%cal Be3f4,Bf4e5,Be5d6][%mdl 32]} Rd7 {[%emt 0:01:28]} 31. Be5 {[%emt 0:00:21]} Qb6 {[%emt 0:00:06]} 32. c5 {[%emt 0:04:31]} Qa6 {[%emt 0:01:02]} 33. Bd6 {[%emt 0:00:17] White took control after the opening.   Weighted Error Value: White=0.44/Black=0.66.  Mistake:       	White=1     	Black=4      OK:         	White=6     	Black=2      Best:        	---       	Black=1} 1-0